bitfinex-derivatives/quotes_BNBF0:USTF0_20250126
["timestamp","ask_amount","ask_price","bid_price","bid_amount"]
[1737931951920,0.29531628,677.24,675.77,1.10650391]
[1737931952121,0.29531628,677.24,669.68,7.43277743]
[1737931952122,0.29531628,677.24,675.59,1.10650391]
[1737931952321,0.29531628,677.24,675.6,0.27169153]
[1737931953522,0.29531628,677.24,675.61,0.27169241]
[1737931953718,0.29531628,677.24,675.6,0.27169241]
[1737931953918,0.29531628,677.24,675.61,0.27169241]
[1737931954113,0.29531628,677.24,675.6,0.27169241]
[1737931954414,0.29531628,677.24,675.61,0.27169241]
[1737931954620,0.29531628,677.24,675.62,0.27169241]
[1737931954819,0.29531628,677.24,675.63,0.27169241]
[1737931955118,0.29531628,677.24,675.64,0.27169241]
[1737931955321,0.29531628,677.24,675.6,0.27169241]
[1737931955515,0.29531628,677.24,675.61,0.27169241]
[1737931955719,0.29531628,677.24,675.51,1.10650391]
[1737931955720,0.29531628,677.24,675.52,0.27169241]
[1737931957022,0.29531628,677.24,675.51,1.10650391]
[1737931957222,0.29531628,677.24,675.52,0.27169703]
[1737931958618,0.29531628,677.24,675.51,0.27169703]
[1737931958815,0.29531628,677.24,675.5,1.10650391]
[1737931959018,0.29531628,677.24,675.51,0.27170272]
[1737931962322,0.29531628,677.24,675.5,0.27170272]
[1737931962518,0.29531628,677.24,675.51,0.27170272]
[1737931962922,0.29531628,677.24,675.52,0.27170272]
[1737931963121,0.29531628,677.24,675.5,0.27170272]
[1737931963322,0.29531628,677.24,675.51,0.27170272]
[1737931963522,0.29531628,677.24,675.5,0.27170272]
[1737931963723,0.29531628,677.24,675.51,0.27170272]
[1737931963917,0.29531628,677.24,675.5,0.27170272]
[1737931964324,0.29531628,677.24,675.44,1.10650391]
[1737931964525,0.29531628,677.24,675.45,0.27172712]
[1737931967629,0.29531628,677.24,675.45,1.37823103]
[1737931967828,0.29531628,677.24,675.46,0.27172712]
[1737931968031,0.29531628,677.24,675.47,0.27172712]
[1737931968225,0.29531628,677.24,675.48,0.27172712]
[1737931968429,0.29531628,677.24,675.49,0.27172712]
[1737931968630,0.29531628,677.24,675.5,0.27172712]
[1737931968828,0.29531628,677.24,675.46,0.27172712]
[1737931970534,0.29531628,677.24,675.45,1.10650391]
[1737931971332,0.29531628,677.24,675.48,1.10650391]
[1737931973531,0.29531628,677.24,675.25,1.10497063]
[1737931973736,0.86914143,677.23,675.25,1.10497063]
[1737931973932,0.29532936,677.21,675.25,1.10497063]
[1737931974333,5.9112354,677.21,675.25,1.10497063]
[1737931974535,6.48504747,677.2,675.25,1.10497063]
[1737931974737,0.29534244,677.18,675.14,1.10497063]
[1737931974935,1.0963472,676.6,674.48,1.10009028]
[1737931975136,0.29563932,676.5,674.49,0.27225108]
[1737931975839,0.86914143,676.49,674.49,0.27225108]
[1737931976034,0.29565243,676.47,674.48,1.10009028]
[1737931976441,0.86914143,676.46,674.48,1.10009028]
[1737931976839,0.29566554,676.44,674.49,0.27229894]
[1737931977143,0.29566554,676.44,674.48,1.10009028]
[1737931977642,0.86914143,676.43,674.49,0.27231914]
[1737931977841,0.86914143,676.43,674.48,1.10009028]
[1737931978035,0.29567865,676.41,674.48,1.10009028]
[1737931978441,0.86914143,676.4,674.48,1.10009028]
[1737931978842,0.86914143,676.39,674.48,1.10009028]
[1737931979044,0.86914143,676.39,674.49,0.27232687]
[1737931979241,0.29569614,676.37,674.48,1.10009028]
[1737931979440,0.29569614,676.37,673.8,0.72422035]
[1737931979640,0.86914143,676.36,673.81,0.27235638]
[1737931979840,0.29575298,676.24,673.82,0.27235638]
[1737931980037,0.29575298,676.24,673.83,0.27235638]
[1737931980244,0.29575298,676.24,673.84,0.27235638]
[1737931980443,0.29575298,676.24,673.85,0.27235638]
[1737931980638,0.86914143,676.23,673.86,0.27235638]
[1737931980840,0.29580547,676.12,673.87,0.27235638]
[1737931981041,0.86914143,676.11,673.88,0.27235638]
[1737931981244,0.86914143,676.11,672.92,0.27235638]
[1737931981543,0.86914143,676.1,672.94,0.29720331]
[1737931981742,0.86914143,676.09,672.95,0.99657673]
[1737931981942,0.86914143,676.09,672.96,0.27235638]
[1737931982143,0.86914143,676.08,672.97,0.27235638]
[1737931982342,0.86914143,676.08,672.98,0.27244208]
[1737931982644,0.86914143,676.07,672.99,0.99684484]
[1737931982844,0.86914143,676.07,673.0,0.99684484]
[1737931983046,0.86914143,676.07,673.01,0.99684484]
[1737931983343,0.86914143,676.06,673.02,0.99684484]
[1737931983544,0.86914143,676.06,673.03,0.27244208]
[1737931983845,0.86914143,676.05,673.04,0.27244208]
[1737931984046,0.86914143,676.05,673.05,0.27244208]
[1737931984245,2.41777544,676.05,672.94,0.29720331]
[1737931984447,3.27246097,676.04,672.95,0.27257692]
[1737931984646,6.3708803,676.04,672.96,0.99726094]
[1737931984847,3.27246097,676.03,672.97,0.99726094]
[1737931985046,4.1416024,676.02,672.98,0.27257692]
[1737931985249,3.27246097,676.01,672.99,0.27257692]
[1737931985440,0.86914143,676.02,672.94,0.29720331]
[1737931985441,3.26388795,676.0,673.0,0.27257692]
[1737931985640,3.26388795,675.99,673.01,0.27257692]
[1737931985841,0.86914143,676.02,673.02,0.27257692]
[1737931986045,0.86914143,675.98,672.94,0.29720331]
[1737931986246,0.86914143,675.98,672.95,0.27266353]
[1737931986446,0.86914143,675.98,672.96,0.27266353]
[1737931986645,0.86914143,675.97,672.97,0.27266353]
[1737931986846,0.86914143,675.97,672.98,0.27266353]
[1737931987042,0.86914143,675.97,672.99,0.27266353]
[1737931987246,0.86914143,675.96,673.0,0.27266353]
[1737931987441,0.86914143,675.96,673.01,0.27266353]
[1737931987649,0.86914143,675.95,673.02,0.27266353]
[1737931987947,0.86914143,675.95,673.03,0.27266353]
[1737931988148,0.86914143,675.95,673.04,0.27266353]
[1737931988345,0.86914143,675.95,673.05,0.27266353]
[1737931988545,0.86914143,675.95,673.06,0.27266353]
[1737931988746,0.86914143,675.94,672.03,0.27266353]
[1737931988944,0.86914143,675.94,672.05,0.2975969]
[1737931989147,0.86914143,675.94,672.06,0.99753458]
[1737931989347,0.86914143,675.94,672.07,0.99753458]
[1737931989651,0.86914143,675.93,672.08,0.27266353]
[1737931989945,0.86914143,675.93,672.05,0.2975969]
[1737931989946,0.86914143,675.93,672.09,0.27266353]
[1737931990150,0.86914143,675.93,672.1,0.99753458]
[1737931990353,0.86914143,675.93,672.11,0.99753458]
[1737931990646,0.86914143,675.93,672.12,0.27266353]
[1737931990852,1.54863401,676.05,672.13,0.99753458]
[1737931990853,0.86914143,675.92,672.13,0.99753458]
[1737931991151,0.86914143,675.92,672.14,0.99753458]
[1737931991352,0.86914143,675.92,672.15,0.27266353]
[1737931991653,0.86914143,675.91,672.16,0.2728266]
[1737931991844,0.86914143,675.91,672.17,0.99803569]
[1737931992047,0.86914143,675.9,672.18,0.99803569]
[1737931992244,0.86914143,675.9,672.19,0.99803569]
[1737931992449,0.86914143,675.9,672.2,0.2728266]
[1737931992651,0.86914143,675.9,672.21,0.2728266]
[1737931992954,0.86914143,675.89,672.22,0.99803569]
[1737931993255,0.86914143,675.89,672.23,0.2728266]
[1737931993450,0.86914143,675.88,672.24,0.27286582]
[1737931993752,3.22318338,676.04,672.25,0.27286582]
[1737931993753,0.86914143,675.87,672.25,0.27286582]
[1737931993953,0.86914143,675.87,672.26,0.27286582]
[1737931994145,0.86914143,675.86,672.27,0.27286582]
[1737931994350,0.86914143,675.86,672.28,0.27286582]
[1737931994552,0.86914143,675.85,672.29,0.27286582]
[1737931994747,0.86914143,675.85,672.3,0.27286582]
[1737931994947,0.86914143,675.85,672.31,0.27286582]
[1737931995148,0.86914143,675.84,672.32,0.27286582]
[1737931995353,0.86914143,675.84,672.33,0.27250656]
[1737931995554,0.86914143,675.84,672.05,0.2975969]
[1737931995555,0.86914143,675.83,672.34,0.99706482]
[1737931995854,0.86914143,675.83,672.35,0.99706482]
[1737931996054,0.86914143,675.83,672.36,0.99706482]
[1737931996254,0.86914143,675.83,672.37,0.99706482]
[1737931996449,1.55011136,675.86,672.38,0.99706482]
[1737931996648,1.55011136,675.86,672.39,0.99706482]
[1737931996850,1.55011136,675.86,672.4,0.99706482]
[1737931997052,0.83733513,675.85,672.41,0.99706482]
[1737931997250,0.83733513,675.85,672.05,0.2975969]
[1737931997251,0.83733513,675.85,672.42,0.99706482]
[1737931997447,0.83733513,675.85,672.43,0.99706482]
[1737931997652,0.83733513,675.85,672.44,0.99706482]
[1737931997953,1.55011136,675.86,672.45,0.27250656]
[1737931998152,1.55011136,675.86,672.46,0.27250656]
[1737931998753,0.83774487,675.85,672.46,0.27250656]
[1737931999152,0.83774487,675.85,672.62,0.29734471]
[1737931999349,1.55011136,675.86,672.62,0.29734471]
[1737931999549,1.55011136,675.86,672.63,0.99706482]
[1737931999751,1.55011136,675.86,672.62,0.29734471]
[1737932000053,1.55011136,675.86,672.63,0.99609846]
[1737932000254,1.55011136,675.86,672.64,0.99609846]
[1737932000453,1.55011136,675.86,672.65,0.99609846]
[1737932000754,1.55011136,675.86,672.66,0.99609846]
[1737932000954,1.55011136,675.86,672.67,0.99609846]
[1737932001155,1.55011136,675.86,672.68,0.99609846]
[1737932001357,1.55011136,675.86,672.69,0.99609846]
[1737932001556,1.55011136,675.86,672.7,0.99601275]
[1737932001949,1.55011136,675.86,672.71,0.99601275]
[1737932002148,1.55011136,675.86,672.72,0.99601275]
[1737932002452,1.55011136,675.86,672.73,0.99601275]
[1737932002649,1.55011136,675.86,672.74,0.99601275]
[1737932002953,1.55011136,675.86,672.75,0.99601275]
[1737932003151,1.55011136,675.86,672.76,0.99601275]
[1737932003349,1.55011136,675.86,672.77,0.99601275]
[1737932003555,1.55011136,675.86,672.78,0.9960333]
[1737932003752,1.55011136,675.86,672.79,0.9960333]
[1737932003951,1.55011136,675.86,672.8,0.9960333]
[1737932004157,1.55011136,675.86,672.81,0.9960333]
[1737932004351,1.55011136,675.86,672.96,0.29719448]
[1737932004658,1.55011136,675.86,672.97,0.9960333]
[1737932004659,0.29592803,675.84,672.97,0.9960333]
[1737932004861,0.29592803,675.84,672.98,0.9960333]
[1737932005159,0.29592803,675.84,673.12,0.29712384]
[1737932005454,0.29592803,675.84,673.13,0.9960333]
[1737932005659,0.29592803,675.84,673.26,0.29706205]
[1737932005958,0.29592803,675.84,673.27,0.9960333]
[1737932006154,0.29592803,675.84,673.39,0.2970047]
[1737932006458,0.29592803,675.84,673.4,0.27218008]
[1737932006652,0.29592803,675.84,673.41,0.27218008]
[1737932006855,0.29592803,675.84,673.42,0.27218008]
[1737932007056,0.29592803,675.84,673.43,0.27218008]
[1737932007253,0.29592803,675.84,673.44,0.27218008]
[1737932007457,0.29592803,675.84,673.45,0.99608293]
[1737932007659,0.29592803,675.84,673.46,0.99608293]
[1737932007857,0.29592803,675.84,673.47,0.99608293]
[1737932008059,0.29592803,675.84,673.39,0.2970047]
[1737932008060,0.29592803,675.84,673.57,0.29692533]
[1737932008252,0.29592803,675.84,673.58,0.27219622]
[1737932008558,0.29592803,675.84,673.59,0.27219622]
[1737932008762,0.29592803,675.84,673.6,0.27219622]
[1737932008960,0.29592803,675.84,673.62,0.29690329]
[1737932009261,0.29592803,675.84,673.63,0.27219622]
[1737932009455,0.29592803,675.84,673.62,0.29690329]
[1737932009456,0.29592803,675.84,673.64,0.99608293]
[1737932009655,0.29592803,675.84,673.66,0.29688566]
[1737932009853,0.29592803,675.84,673.67,0.27219622]
[1737932010058,0.29592803,675.84,673.69,0.29687244]
[1737932010259,0.29592803,675.84,673.7,0.27219622]
[1737932010462,0.29592803,675.84,673.71,0.27219622]
[1737932010657,0.29592803,675.84,673.72,0.27219622]
[1737932010854,0.29592803,675.84,673.74,0.29685041]
[1737932011060,0.29592803,675.84,673.75,0.27219622]
[1737932011362,0.29592803,675.84,673.76,0.56903782]
[1737932011660,0.29592803,675.84,673.77,0.27219622]
[1737932011855,0.29592803,675.84,673.78,0.2723544]
[1737932012057,0.8440764,675.83,673.79,0.2723544]
[1737932012255,0.2959762,675.73,673.8,0.2723544]
[1737932012458,0.2959762,675.73,673.81,0.2723544]
[1737932012758,0.8440764,675.72,673.82,0.2723544]
[1737932013059,0.29598934,675.7,673.83,0.27234244]
[1737932013256,0.8440764,675.69,673.84,0.27234244]
[1737932013455,0.29600248,675.67,673.85,1.29333826]
[1737932013660,0.29600248,675.67,673.86,1.29333386]
[1737932013962,0.29600248,675.67,673.87,1.29332946]
[1737932014168,0.29600248,675.67,673.88,0.29678874]
[1737932014367,0.29600248,675.67,673.89,0.99607311]
[1737932014561,0.29600248,675.67,673.9,1.29285304]
[1737932014761,0.29600248,675.67,673.91,1.29284864]
[1737932015060,0.29600248,675.67,673.92,1.29284424]
[1737932015365,0.29600248,675.67,673.93,1.29283983]
[1737932015562,0.29600248,675.67,673.94,1.29283543]
[1737932015762,0.29600248,675.67,673.95,0.56895092]
[1737932015965,0.29600248,675.67,673.96,0.27219301]
[1737932016165,0.29600248,675.67,673.97,0.56894212]
[1737932016366,0.29600248,675.67,673.98,0.29674471]
[1737932016563,0.29600248,675.67,673.99,0.27217662]
[1737932016766,0.29600248,675.67,674.0,0.56891252]
[1737932016968,0.29600248,675.67,674.01,0.56890812]
[1737932017165,0.29600248,675.67,674.02,0.56890372]
[1737932017366,0.29600248,675.67,674.03,0.56889931]
[1737932017561,0.29600248,675.67,674.04,0.56889491]
[1737932017765,0.29600248,675.67,674.05,0.56889051]
[1737932017962,0.29600248,675.67,674.06,0.27217662]
[1737932018168,0.29600248,675.67,674.07,0.27217662]
[1737932018568,0.29600248,675.67,674.08,0.27217662]
[1737932018769,0.29600248,675.67,674.09,0.27217662]
[1737932018972,0.29600248,675.67,674.1,0.27217662]
[1737932019170,0.29600248,675.67,674.11,0.27217662]
[1737932019370,0.29600248,675.67,674.12,0.27217662]
[1737932019572,0.29600248,675.67,674.13,0.27217964]
[1737932019769,0.29600248,675.67,674.14,0.27217964]
[1737932020070,0.29600248,675.67,674.15,0.27217964]
[1737932020271,0.29600248,675.67,674.16,0.27217243]
[1737932020569,0.29600248,675.67,674.17,0.27217243]
[1737932020764,0.29600248,675.67,674.18,0.27217243]
[1737932020969,0.29600248,675.67,674.19,0.27217243]
[1737932021170,0.29600248,675.67,674.2,0.27217243]
[1737932021366,0.29600248,675.67,674.21,0.27217243]
[1737932021567,0.29600248,675.67,674.05,0.29671389]
[1737932021568,0.29600248,675.67,674.22,0.27217243]
[1737932021764,0.29600248,675.67,674.23,0.27217243]
[1737932021966,0.29600248,675.67,674.24,0.27217212]
[1737932022171,0.29600248,675.67,674.25,0.27217212]
[1737932022469,0.29600248,675.67,674.05,0.29671389]
[1737932022470,0.29600248,675.67,674.26,0.27217212]
[1737932022665,0.29600248,675.67,674.27,0.27217212]
[1737932022865,0.29600248,675.67,674.28,0.27217212]
[1737932023064,0.29600248,675.67,674.29,0.27217212]
[1737932023267,0.29600248,675.67,674.3,0.27217212]
[1737932023468,0.29600248,675.67,674.31,0.27217212]
[1737932023765,0.29600248,675.67,674.32,0.27217212]
[1737932023967,0.29600248,675.67,674.33,0.27217212]
[1737932024171,0.29600248,675.67,674.34,0.27217212]
[1737932024368,0.29600248,675.67,674.35,0.27217212]
[1737932024565,0.29600248,675.67,674.36,0.27217212]
[1737932024766,0.29600248,675.67,674.37,0.27217212]
[1737932024966,0.29600248,675.67,674.38,0.27217212]
[1737932025171,0.29600248,675.67,674.39,0.27217212]
[1737932025370,0.29600248,675.67,674.4,0.27217212]
[1737932025573,0.29600248,675.67,674.41,0.27217212]
[1737932025775,0.29600248,675.67,674.42,0.27206548]
[1737932025967,0.29600248,675.67,674.43,0.27206548]
[1737932026273,0.29600248,675.67,674.44,0.27206548]
[1737932026473,0.29600248,675.67,674.45,0.27206548]
[1737932026674,0.29600248,675.67,674.46,0.27206548]
[1737932026974,0.29600248,675.67,674.47,0.27206548]
[1737932027174,0.29600248,675.67,674.48,0.27206548]
[1737932027375,0.29600248,675.67,674.05,0.29671389]
[1737932027574,0.29600248,675.67,674.06,0.27222125]
[1737932027872,0.85582071,675.66,674.07,0.27222125]
[1737932028073,0.29601562,675.64,674.08,0.27222125]
[1737932028273,0.85582071,675.63,674.09,0.27222125]
[1737932028575,0.29602877,675.61,674.1,0.27222125]
[1737932028772,0.29602877,675.61,674.11,0.27222125]
[1737932029074,0.29602877,675.61,674.12,0.27222125]
[1737932029267,0.29602877,675.61,674.13,0.27222125]
[1737932029471,0.85582071,675.6,674.14,0.27222125]
[1737932029669,0.29604191,675.58,674.15,0.27222125]
[1737932029867,0.85582071,675.57,674.16,0.27222125]
[1737932030069,0.29605506,675.55,674.17,0.27222125]
[1737932030268,0.29605506,675.55,674.05,0.29671389]
[1737932030474,0.85582071,675.54,674.06,0.27224643]
[1737932030775,0.29606821,675.52,674.07,0.27224643]
[1737932030975,0.85582071,675.51,674.08,0.27224643]
[1737932031175,0.29608136,675.49,674.05,0.29671389]
[1737932031375,0.29608136,675.49,674.06,0.27224309]
[1737932031575,0.85582071,675.48,674.07,0.27224309]
[1737932031775,0.29609012,675.47,674.08,0.27224309]
[1737932031970,0.29609012,675.47,674.09,0.27224309]
[1737932032169,0.29609012,675.47,674.1,0.27224309]
[1737932032371,0.85582071,675.46,674.11,0.27224309]
[1737932032575,0.85582071,675.46,674.12,0.27224309]
[1737932032775,0.85582071,675.46,674.13,0.27224309]
[1737932032969,0.85582071,675.46,674.05,0.29671389]
[1737932033174,0.85582071,675.46,674.06,0.27223436]
[1737932033376,0.85582071,675.46,674.07,0.27223436]
[1737932033576,0.29609012,675.47,674.08,0.27223436]
[1737932033875,0.29609012,675.47,674.09,0.27223436]
[1737932034075,0.29609012,675.47,674.1,0.27223436]
[1737932034275,0.29609012,675.47,674.11,0.27223436]
[1737932034475,0.29609012,675.47,674.12,0.56891744]
[1737932034676,0.29609012,675.47,674.13,0.27223436]
[1737932034876,0.29609012,675.47,674.14,0.56890864]
[1737932035073,0.29609012,675.47,674.15,0.56890424]
[1737932035273,0.29609012,675.47,674.16,0.27223436]
[1737932035474,0.29609012,675.47,674.17,0.56889543]
[1737932035675,0.29609012,675.47,674.18,0.56889103]
[1737932035875,0.29609012,675.47,674.19,0.56888663]
[1737932036075,0.29609012,675.47,674.2,0.27223436]
[1737932036376,0.29609012,675.47,674.21,0.27223436]
[1737932036576,0.29609012,675.47,674.22,0.27223436]
[1737932036778,0.29609012,675.47,674.23,0.27223436]
[1737932036976,0.29609012,675.47,674.24,0.27223436]
[1737932037177,0.29609012,675.47,674.25,0.27223436]
[1737932037378,0.29609012,675.47,674.26,0.27223436]
[1737932037572,0.29609012,675.47,674.27,0.27223436]
[1737932037777,0.29609012,675.47,674.28,0.27223436]
[1737932037978,0.29609012,675.47,674.29,0.27223436]
[1737932038177,0.29609012,675.47,674.3,0.27223436]
[1737932038376,0.29609012,675.47,674.31,0.27223436]
[1737932038577,0.29609012,675.47,674.32,0.27223436]
[1737932038778,0.29609012,675.47,674.33,0.27223436]
[1737932038979,0.29609012,675.47,674.34,0.27223436]
[1737932039174,0.29609012,675.47,674.35,0.27223436]
[1737932039373,0.29609012,675.47,674.36,0.27223436]
[1737932039577,0.29609012,675.47,674.37,0.27223436]
[1737932039777,0.29609012,675.47,674.38,0.27223436]
[1737932039976,0.29609012,675.47,674.39,0.27223436]
[1737932040179,0.29609012,675.47,674.4,0.27223436]
[1737932040379,0.29609012,675.47,674.41,0.27223436]
[1737932040581,0.29609012,675.47,674.42,0.27223436]
[1737932040774,0.29609012,675.47,674.43,0.27223436]
[1737932040978,0.29609012,675.47,674.44,0.27223436]
[1737932041177,0.29609012,675.47,674.45,0.27223436]
[1737932041374,0.29609012,675.47,674.46,0.27223436]
[1737932041578,0.29609012,675.47,674.19,0.29665227]
[1737932041774,0.29609012,675.47,674.2,0.27218064]
[1737932041975,0.29609012,675.47,674.21,0.27218064]
[1737932042282,0.29609012,675.47,674.22,0.27218064]
[1737932042479,0.29609012,675.47,674.23,0.27218064]
[1737932042679,0.29609012,675.47,674.24,0.27218064]
[1737932042877,0.29609012,675.47,674.25,0.27218064]
[1737932043184,0.85940348,675.46,674.26,0.27218064]
[1737932043383,0.29609889,675.45,674.19,0.29665227]
[1737932043584,0.29609889,675.45,674.2,0.27221743]
[1737932043784,0.29609889,675.45,674.21,0.27221743]
[1737932043980,0.29609889,675.45,674.22,0.27221743]
[1737932044190,0.29609889,675.45,674.23,0.27221743]
[1737932044486,0.29609889,675.45,674.24,0.27221743]
[1737932044783,0.29609889,675.45,674.25,0.27221743]
[1737932044984,0.29609889,675.45,674.26,0.27221743]
[1737932045180,0.29609889,675.45,674.27,0.27221743]
[1737932045378,0.29609889,675.45,674.28,0.27221743]
[1737932045578,0.86001938,675.44,674.29,0.27221743]
[1737932045884,0.29610766,675.43,674.3,0.27221743]
[1737932046084,0.29610766,675.43,674.31,0.27221743]
[1737932046379,0.29610766,675.43,674.32,0.27221743]
[1737932046580,0.29610766,675.43,674.19,0.29665227]
[1737932046780,0.29610766,675.43,674.2,0.27220397]
[1737932046987,0.29610766,675.43,674.21,0.27220397]
[1737932047184,0.29610766,675.43,674.22,0.27220397]
[1737932047385,0.29610766,675.43,674.23,0.27219857]
[1737932047586,0.86116791,675.42,674.24,0.27219857]
[1737932047888,0.29611643,675.41,674.25,0.27219857]
[1737932048085,0.29611643,675.41,674.26,0.27219857]
[1737932048286,0.86116791,675.4,674.27,0.27219857]
[1737932048487,0.2961252,675.39,674.28,0.27219857]
[1737932048683,0.2961252,675.39,674.29,0.27219857]
[1737932048887,0.2961252,675.39,674.3,0.27219857]
[1737932049081,0.2961252,675.39,674.31,0.27219857]
[1737932049285,0.86293304,675.38,674.32,0.27219857]
[1737932049485,0.29613397,675.37,674.33,0.27219857]
[1737932049686,0.29613397,675.37,674.34,0.27219857]
[1737932049989,0.29613397,675.37,674.35,0.27219857]
[1737932050189,0.29613397,675.37,674.36,0.27219857]
[1737932050392,0.86397089,675.36,674.37,0.27219857]
[1737932050590,0.86397089,675.36,674.19,0.29665227]
[1737932050591,0.29614274,675.35,674.38,0.27219857]
[1737932050788,0.29614274,675.35,674.39,0.27219857]
[1737932050990,0.29614274,675.35,673.98,0.27219857]
[1737932051189,0.86397089,675.34,673.99,0.27219857]
[1737932051390,0.29615151,675.33,674.0,0.27219857]
[1737932051586,0.29615151,675.33,674.01,0.27219857]
[1737932051791,0.86397089,675.32,674.02,0.27219857]
[1737932051988,0.29616028,675.31,674.03,0.27219857]
[1737932052192,0.29616028,675.31,674.04,0.27219857]
[1737932052488,0.29616028,675.31,674.05,0.27219857]
[1737932052694,0.86397089,675.3,674.06,0.27219857]
[1737932052891,0.86397089,675.3,674.05,1.10315429]
[1737932052892,0.29616905,675.29,674.07,0.27219857]
[1737932053088,0.86397089,675.28,674.08,0.27219857]
[1737932053293,0.29617782,675.27,674.06,0.27219857]
[1737932053594,0.86397089,675.26,674.07,0.27219857]
[1737932053792,0.86397089,675.26,674.08,0.27219857]
[1737932053793,0.29618659,675.25,674.08,0.27219857]
[1737932053994,0.29618659,675.25,674.09,0.27219857]
[1737932054189,0.29618659,675.25,674.1,0.27219857]
[1737932054391,0.86397089,675.24,674.11,0.27219857]
[1737932054592,0.29619537,675.23,674.12,0.27219857]
[1737932054791,1.16016626,675.23,674.06,0.27219857]
[1737932054993,1.16016626,675.23,674.07,0.27219857]
[1737932055194,1.16016626,675.23,674.06,0.27219857]
[1737932055394,1.16016626,675.23,674.07,0.27219857]
[1737932055695,0.86397089,675.22,674.08,0.27219857]
[1737932055895,0.29620414,675.21,673.89,0.27219857]
[1737932056095,0.86397089,675.2,673.89,0.27219857]
[1737932056294,0.29621291,675.19,673.89,0.27219857]
[1737932056493,0.29621291,675.19,673.9,0.27228117]
[1737932056693,0.29621291,675.19,673.89,0.27228117]
[1737932056893,0.86397089,675.18,673.9,0.27228117]
[1737932057093,0.86397089,675.18,673.89,0.27228117]
[1737932057294,0.86397089,675.17,673.9,0.27228117]
[1737932057595,0.86397089,675.16,673.91,0.27228117]
[1737932057795,0.86397089,675.16,673.88,1.10315429]
[1737932057796,0.86397089,675.16,673.89,0.27228117]
[1737932057995,0.29623046,675.15,673.9,0.27228117]
[1737932058295,1.16020135,675.15,673.89,0.27228117]
[1737932058496,0.86397089,675.14,673.9,0.27228117]
[1737932058696,0.86397089,675.13,673.74,0.27228117]
[1737932058898,1.16021013,675.13,673.75,0.56912718]
[1737932059097,0.86397089,675.12,673.76,0.27228117]
[1737932059298,0.86397089,675.12,673.77,0.27228117]
[1737932059597,0.86397089,675.11,673.78,0.27228117]
[1737932059793,0.86397089,675.1,673.79,0.27228117]
[1737932059998,0.86397089,675.09,673.8,0.27228117]
[1737932060195,0.86397089,675.08,673.81,0.27233291]
[1737932060391,0.86397089,675.08,673.76,0.27233291]
[1737932060598,0.86397089,675.08,673.77,0.27233291]
[1737932060797,0.86397089,675.07,673.78,0.27233291]
[1737932060998,0.86397089,675.07,673.76,0.27233291]
[1737932061299,0.86397089,675.06,673.77,0.27233291]
[1737932061597,0.86397089,675.06,673.75,0.29684601]
[1737932061598,0.86397089,675.05,673.78,0.27233291]
[1737932061797,0.86397089,675.05,673.79,0.27233291]
[1737932061997,0.86397089,675.04,673.8,0.27233291]
[1737932062198,0.86397089,675.04,673.76,0.27233291]
[1737932062397,0.86397089,675.04,673.77,0.27233291]
[1737932062593,0.86397089,675.03,673.76,0.27233291]
[1737932062799,0.86397089,675.03,673.77,0.27233291]
[1737932062994,0.86397089,675.03,673.76,0.27233291]
[1737932063196,0.86397089,675.02,673.77,0.27233291]
[1737932063397,0.86397089,675.02,673.78,0.27233291]
[1737932063696,0.86397089,675.02,673.79,0.2723581]
[1737932063898,0.86397089,675.02,673.8,0.2723581]
[1737932064099,0.86397089,675.01,673.81,0.2723581]
[1737932064399,0.86397089,675.0,673.75,0.29684601]
[1737932064600,0.86397089,675.0,673.76,0.27236556]
[1737932064800,0.86397089,674.99,673.77,0.27236556]
[1737932065102,0.86397089,674.99,673.78,0.27236556]
[1737932065294,1.16027596,674.98,673.79,0.27236556]
[1737932065497,0.29630946,674.97,673.8,0.27236875]
[1737932065698,0.86397089,674.96,673.81,0.27236875]
[1737932065898,0.86397089,674.96,673.76,0.27236875]
[1737932066098,0.86397089,674.95,673.77,0.27236875]
[1737932066295,0.86397089,674.95,673.78,0.27236875]
[1737932066500,0.86397089,674.94,673.79,0.27236875]
[1737932066701,0.86397089,674.94,673.8,0.27236875]
[1737932067004,0.86397089,674.94,673.81,0.27236875]
[1737932067197,0.86397089,674.94,673.82,0.27236875]
[1737932067400,0.86397089,674.94,673.75,0.29684601]
[1737932067401,0.86397089,674.94,673.83,0.27236875]
[1737932067598,0.29630946,674.97,673.75,0.29684601]
[1737932067599,0.86397089,674.93,673.84,0.27236875]
[1737932067799,0.86397089,674.92,673.85,0.27236875]
[1737932068104,0.86397089,674.92,673.86,0.27236875]
[1737932068301,0.86397089,674.91,673.87,0.27236875]
[1737932068497,0.86397089,674.91,673.88,0.27236875]
[1737932068703,0.86397089,674.9,673.89,0.27236875]
[1737932068903,0.86397089,674.9,673.9,0.27236875]
[1737932069103,0.86397089,674.89,673.91,0.27236875]
[1737932069300,0.86397089,674.89,673.92,0.27238143]
[1737932069501,0.86397089,674.89,673.93,0.27238143]
[1737932069706,0.86397089,674.88,673.76,0.27238143]
[1737932069905,0.86397089,674.88,673.77,0.27238143]
[1737932070203,0.86397089,674.87,673.78,0.27238143]
[1737932070405,0.86397089,674.87,673.79,0.27238143]
[1737932070704,0.86397089,674.86,673.8,0.27238143]
[1737932070905,0.86397089,674.86,673.81,0.27238143]
[1737932071203,0.86397089,674.86,673.82,0.27238143]
[1737932071404,0.86397089,674.85,673.76,0.27238143]
[1737932072006,0.86397089,674.84,673.76,0.27238143]